Department Family,Entity,Date,Expense Type,Expense Area,Supplier,Transaction Number,Amount
DOH,London Ambulance Service NHS Trust,15/03/2023,Elective Bets Nurses,Neonatal Transfer Service,Barts Health Nhs Trust,6152,30000
DOH,London Ambulance Service NHS Trust,01/03/2023,Vehicles,Capital,Ford Motor Company Ltd,656027,31548
DOH,London Ambulance Service NHS Trust,01/03/2023,Vehicles,Capital,Ford Motor Company Ltd,656028,28680
DOH,London Ambulance Service NHS Trust,01/03/2023,Vehicles,Capital,Ford Motor Company Ltd,656029,1238364.16
DOH,London Ambulance Service NHS Trust,01/03/2023,Vehicles,Capital,Ford Motor Company Ltd,656248,27845.5
DOH,London Ambulance Service NHS Trust,01/03/2023,Vehicles,Capital,Ford Motor Company Ltd,656565,110937.17
DOH,London Ambulance Service NHS Trust,24/03/2023,Medical & Surgical Items,Managed Stores,Stryker Uk Ltd,678727,25146
DOH,London Ambulance Service NHS Trust,31/03/2023,Gp Services,Clinical Hub (Chub),South East London Doctors Cooperative Ltd,690822,477435
DOH,London Ambulance Service NHS Trust,31/03/2023,Gp Services,Clinical Hub (Chub),South East London Doctors Cooperative Ltd,690859,477435
DOH,London Ambulance Service NHS Trust,08/03/2023,Agency Call Handlers,111 Nel Operations,Integrated Care Group Ltd,694312,111083.3
DOH,London Ambulance Service NHS Trust,17/03/2023,Vehicles,Capital,Ford Motor Company Ltd,694666,100705.99
DOH,London Ambulance Service NHS Trust,01/03/2023,Building Ppm,Property Management,Toureen Retail Ltd,695715,39438
DOH,London Ambulance Service NHS Trust,15/03/2023,Ambulance Equipment,Fleet Support Services,Stryker Uk Ltd,697115,27450
DOH,London Ambulance Service NHS Trust,01/03/2023,Buildings,Capital,Coniston Limited,698978,117143.82
DOH,London Ambulance Service NHS Trust,15/03/2023,Private Ambulance Hire,Ops Central - Private Amb,Emfs Group Ltd,699571,46175.5
DOH,London Ambulance Service NHS Trust,01/03/2023,Vehicles,Capital,Man Truck And Bus Uk Ltd,699704,44840.2
DOH,London Ambulance Service NHS Trust,01/03/2023,Vehicles,Capital,Man Truck And Bus Uk Ltd,699705,44840.2
DOH,London Ambulance Service NHS Trust,01/03/2023,Vehicles,Capital,Man Truck And Bus Uk Ltd,699706,44840.2
DOH,London Ambulance Service NHS Trust,01/03/2023,Vehicles,Capital,Man Truck And Bus Uk Ltd,699707,44840.2
DOH,London Ambulance Service NHS Trust,01/03/2023,Vehicles,Capital,Man Truck And Bus Uk Ltd,699708,44840.2
DOH,London Ambulance Service NHS Trust,01/03/2023,Vehicles,Capital,Man Truck And Bus Uk Ltd,699709,44840.2
DOH,London Ambulance Service NHS Trust,01/03/2023,Vehicles,Capital,Man Truck And Bus Uk Ltd,699710,44840.2
DOH,London Ambulance Service NHS Trust,01/03/2023,Vehicles,Capital,Man Truck And Bus Uk Ltd,699711,44840.2
DOH,London Ambulance Service NHS Trust,01/03/2023,Vehicles,Capital,Man Truck And Bus Uk Ltd,699712,44840.2
DOH,London Ambulance Service NHS Trust,01/03/2023,Vehicles,Capital,Man Truck And Bus Uk Ltd,699713,44840.2
DOH,London Ambulance Service NHS Trust,03/03/2023,Private Ambulance Hire,Ops Central - Private Amb,Emfs Group Ltd,699800,52498.27
DOH,London Ambulance Service NHS Trust,03/03/2023,Defibrillator Leases,Covid-19 - Logistics,De Lage Landen Leasing Ltd,699925,43200
DOH,London Ambulance Service NHS Trust,15/03/2023,Agency Call Handlers,111 Sel Operations,Integrated Care Group Ltd,699943,49922.72
DOH,London Ambulance Service NHS Trust,01/03/2023,Ambulance Equipment,Supply & Material Management,Stryker Uk Ltd,701380,28980
DOH,London Ambulance Service NHS Trust,15/03/2023,Elective Bets Nurses,Neonatal Transfer Service,Barts Health Nhs Trust,7018,-30000
DOH,London Ambulance Service NHS Trust,10/03/2023,Occupational Health Fees,Healthy Workplace,Working On Wellbeing T/A Optima Health,702085,91977.13
DOH,London Ambulance Service NHS Trust,29/03/2023,Private Ambulance Hire,Ops Central - Private Amb,Emfs Group Ltd,702200,41228.16
DOH,London Ambulance Service NHS Trust,15/03/2023,Private Ambulance Hire,Ops Central - Private Amb,Emfs Group Ltd,702202,47263.57
DOH,London Ambulance Service NHS Trust,03/03/2023,Managed Service - Blue Light,Critial Care Transfer Service,Veho Solutions Ltd,702234,39653.4
DOH,London Ambulance Service NHS Trust,01/03/2023,Managed Service - Call Handler,111 Nwl Operations,London Central And West Ucc,702426,235747
DOH,London Ambulance Service NHS Trust,08/03/2023,Uniform,Clinical Ed Administration,The Cooneen Group,702865,33004.69
DOH,London Ambulance Service NHS Trust,01/03/2023,Capitalised Software,Capital,Nuesoft Limited,702877,26394
DOH,London Ambulance Service NHS Trust,08/03/2023,Managed Service - Call Handler,111 Sel Operations,Dhu 111 (East Midlands) Cic,703425,145980
DOH,London Ambulance Service NHS Trust,08/03/2023,Managed Service - Call Handler,111 Nwl Operations,Practice Plus Group Urgent Care Limited,704496,249640
DOH,London Ambulance Service NHS Trust,08/03/2023,Managed Service - Call Handler,111 Nwl Operations,Practice Plus Group Urgent Care Limited,704497,649063.2
DOH,London Ambulance Service NHS Trust,24/03/2023,Medical Equipment,Supply & Material Management,Pax Bags Ltd,704671,25202
DOH,London Ambulance Service NHS Trust,01/03/2023,Pts Control Maintenance,Systems,Specialist Computer Centres Ltd,704697,46036.54
DOH,London Ambulance Service NHS Trust,01/03/2023,Building Ppm,Property Management,Toureen Retail Ltd,705116,30766.8
DOH,London Ambulance Service NHS Trust,01/03/2023,Gp Services,Clinical Hub (Chub),South East London Doctors Cooperative Ltd,705544,140816.45
DOH,London Ambulance Service NHS Trust,22/03/2023,Cad Tools Maintenance,Cad Support,Peraton International Llc,705852,59902.75
DOH,London Ambulance Service NHS Trust,22/03/2023,Cad Tools Maintenance,Cad Support,Peraton International Llc,705861,59902.75
DOH,London Ambulance Service NHS Trust,01/03/2023,Network Equipment & Services,Capital,Bt Global Services,705991,32938.2
DOH,London Ambulance Service NHS Trust,03/03/2023,Tyres,Fleet Support Services,Ats Euromaster Ltd,706098,50141.06
DOH,London Ambulance Service NHS Trust,22/03/2023,Computer Licences Additions,Clinical Hub (Chub),Goodsam Ltd,706139,31500
DOH,London Ambulance Service NHS Trust,08/03/2023,Ambulance Equipment,Supply & Material Management,Stryker Uk Ltd,706163,129470.4
DOH,London Ambulance Service NHS Trust,08/03/2023,Training Accommodation,International Recruitment 2023,The Independents Hotel Reservations Ltd,706355,33264
DOH,London Ambulance Service NHS Trust,08/03/2023,Buildings,Capital,Wb Power Services Ltd,706525,290797.31
DOH,London Ambulance Service NHS Trust,10/03/2023,Managed Service - Call Handler,111 Nwl Operations,London Central And West Ucc,706586,199737
DOH,London Ambulance Service NHS Trust,15/03/2023,Buildings,Capital,Coniston Limited,706631,222790.3
DOH,London Ambulance Service NHS Trust,15/03/2023,Service Charges,111 Sel Operations,Avison Young (Pma321),706711,29411.92
DOH,London Ambulance Service NHS Trust,15/03/2023,Rent,111 Sel Operations,Avison Young (Pma321),706711,73590.3
DOH,London Ambulance Service NHS Trust,15/03/2023,Service Charges,111 Sel Operations,Avison Young (Pma321),706711,29411.92
DOH,London Ambulance Service NHS Trust,15/03/2023,General Insurance,Cbrn Unit,Miller Insurance Services Ltd,706719,38662.4
DOH,London Ambulance Service NHS Trust,01/03/2023,Course And Conference Fees,Hee Cpd Income 2022-23,World Extreme Medicine Ltd,706722,44750
DOH,London Ambulance Service NHS Trust,01/03/2023,Computer Hardware,Capital,Dell Computer Corporation Ltd,707053,57720
DOH,London Ambulance Service NHS Trust,01/03/2023,Computer Hardware,Capital,Dell Computer Corporation Ltd,707054,39249.6
DOH,London Ambulance Service NHS Trust,01/03/2023,Computer Hardware,Capital,Dell Computer Corporation Ltd,707055,57720
DOH,London Ambulance Service NHS Trust,01/03/2023,Computer Hardware,Capital,Dell Computer Corporation Ltd,707056,57720
DOH,London Ambulance Service NHS Trust,01/03/2023,Computer Hardware,Capital,Dell Computer Corporation Ltd,707058,57720
DOH,London Ambulance Service NHS Trust,01/03/2023,Computer Software Maintenance,Epcr Revenue Project Cost,Cleric Computer Services Ltd,707117,150000
DOH,London Ambulance Service NHS Trust,01/03/2023,Computer Software Maintenance,Epcr Revenue Project Cost,Cleric Computer Services Ltd,707118,150000
DOH,London Ambulance Service NHS Trust,01/03/2023,Electricity,Newham Training,London Borough Of Newham,707190,30654.85
DOH,London Ambulance Service NHS Trust,10/03/2023,Buildings,Capital,Lily Green Construction Services Ltd,707203,57594.56
DOH,London Ambulance Service NHS Trust,10/03/2023,Buildings,Capital,Lily Green Construction Services Ltd,707204,28913.99
DOH,London Ambulance Service NHS Trust,15/03/2023,Computer Hardware,Telephony Infra Mod To Cm8,Daisy Corporate Services Trading Limited,707225,359169.47
DOH,London Ambulance Service NHS Trust,01/03/2023,Computer Peripherals & Access,Capital,Dell Computer Corporation Ltd,707445,36792
DOH,London Ambulance Service NHS Trust,01/03/2023,Training Equipment,Hee Income Uni Placements 2021-22,Laerdal Medical As,707456,28181.21
DOH,London Ambulance Service NHS Trust,03/03/2023,Mobile Display Unit,Capital,Venari O&H Ltd,707527,125799.31
DOH,London Ambulance Service NHS Trust,01/03/2023,Network Equipment & Services,Capital,Norbeck Ltd,707619,35904
DOH,London Ambulance Service NHS Trust,08/03/2023,Electrical Installations,Capital,Bt Global Services,707654,25745.32
DOH,London Ambulance Service NHS Trust,15/03/2023,Phone & Fax Line Rental,Networks,Bt Teleworker,707658,73759.36
DOH,London Ambulance Service NHS Trust,22/03/2023,Computer Software,Supply & Material Management,Creative Software Solutions (Europe) Ltd,707731,74391.24
DOH,London Ambulance Service NHS Trust,22/03/2023,Computer Software,Make Ready - Project Costs,Creative Software Solutions (Europe) Ltd,707732,32634
DOH,London Ambulance Service NHS Trust,10/03/2023,Equipment Maintenance,Hazardous Area Response Team,Creative Software Solutions (Europe) Ltd,707736,35478
DOH,London Ambulance Service NHS Trust,01/03/2023,Ambulance Equipment,Supply & Material Management,Laerdal Medical As,707738,91923.6
DOH,London Ambulance Service NHS Trust,01/03/2023,Private Ambulance Hire,Ops Central - Private Amb,Emfs Group Ltd,707765,39247.09
DOH,London Ambulance Service NHS Trust,08/03/2023,Computer Software,Fleet Support Services,Chevin Fleet Solutions,707821,87120
DOH,London Ambulance Service NHS Trust,01/03/2023,Managed Service - Adv Para Pra,111 Sel Operations - Cas,Hays Specialist Recruitment Ltd,707912,1676.02
DOH,London Ambulance Service NHS Trust,01/03/2023,Managed Service - Nurses,111 Nel Operations - Cas,Hays Specialist Recruitment Ltd,707912,740.99
DOH,London Ambulance Service NHS Trust,01/03/2023,Managed Service - Adv Para Pra,111 Nel Operations - Cas,Hays Specialist Recruitment Ltd,707912,4914.55
DOH,London Ambulance Service NHS Trust,01/03/2023,Managed Service - Call Handler,111 Nel Operations,Hays Specialist Recruitment Ltd,707912,9498.94
DOH,London Ambulance Service NHS Trust,01/03/2023,Managed Service - Call Handler,111 Sel Operations,Hays Specialist Recruitment Ltd,707912,8516.14
DOH,London Ambulance Service NHS Trust,01/03/2023,Managed Service - Adv Prac,111 Nel Operations - Cas,Hays Specialist Recruitment Ltd,707912,443882.41
DOH,London Ambulance Service NHS Trust,01/03/2023,Managed Service - Adv Prac,111 Sel Operations - Cas,Hays Specialist Recruitment Ltd,707912,106625.82
DOH,London Ambulance Service NHS Trust,01/03/2023,Managed Service - Gps,111 Nel Operations - Cas,Hays Specialist Recruitment Ltd,707912,253019.87
DOH,London Ambulance Service NHS Trust,01/03/2023,Managed Service - Gps,111 Sel Operations - Cas,Hays Specialist Recruitment Ltd,707912,466918.79
DOH,London Ambulance Service NHS Trust,01/03/2023,Managed Service - Nurses,111 Sel Operations - Cas,Hays Specialist Recruitment Ltd,707912,25507.46
DOH,London Ambulance Service NHS Trust,01/03/2023,Private Ambulance Hire,Ops Central - Private Amb,Emfs Group Ltd,708231,46912.5
DOH,London Ambulance Service NHS Trust,01/03/2023,Private Ambulance Hire,Ops Central - Private Amb,Emfs Group Ltd,708232,40942.18
DOH,London Ambulance Service NHS Trust,08/03/2023,Computer Software Maintenance,Cad Support,Cleric Computer Services Ltd,708241,228000
DOH,London Ambulance Service NHS Trust,01/03/2023,Computer Software,Scheduling Department Mgmt,Working Time Solutions Ltd,708374,55288.8
DOH,London Ambulance Service NHS Trust,15/03/2023,Security Firms,Hq Building Services,Profile Security Services Limited,708388,27710.66
DOH,London Ambulance Service NHS Trust,01/03/2023,Ambulance Equipment,Supply & Material Management,Ferno (Uk),708399,46661.4
DOH,London Ambulance Service NHS Trust,03/03/2023,Vehicle Recovery,Fleet Support Services,The Mansfield Group,708412,64439.28
DOH,London Ambulance Service NHS Trust,08/03/2023,Professional Fees & Services,Fleet Support Services,Brs Jobs Ltd,708661,44923.02
DOH,London Ambulance Service NHS Trust,15/03/2023,Buildings,Capital,Coniston Limited,708675,144551.62
DOH,London Ambulance Service NHS Trust,29/03/2023,Building Maintenance,Greenwich Estates,Fletchers Facilities Ltd,708714,38978.49
DOH,London Ambulance Service NHS Trust,17/03/2023,Building Maintenance,Greenwich Estates,Fletchers Facilities Ltd,708715,42882.7
DOH,London Ambulance Service NHS Trust,15/03/2023,Building Maintenance,Fulham Estates,Fletchers Facilities Ltd,708716,38978.49
DOH,London Ambulance Service NHS Trust,15/03/2023,Vehicles,Capital,Man Truck And Bus Uk Ltd,708717,51505.2
DOH,London Ambulance Service NHS Trust,15/03/2023,Vehicles,Capital,Man Truck And Bus Uk Ltd,708718,51505.2
DOH,London Ambulance Service NHS Trust,15/03/2023,Vehicles,Capital,Man Truck And Bus Uk Ltd,708719,51505.2
DOH,London Ambulance Service NHS Trust,15/03/2023,Vehicles,Capital,Man Truck And Bus Uk Ltd,708720,51505.2
DOH,London Ambulance Service NHS Trust,15/03/2023,Vehicles,Capital,Man Truck And Bus Uk Ltd,708721,51505.2
DOH,London Ambulance Service NHS Trust,08/03/2023,Vehicles,Capital,Man Truck And Bus Uk Ltd,708722,43383.6
DOH,London Ambulance Service NHS Trust,03/03/2023,Managed Service - Call Handler,111 Sel Operations,Herts Urgent Care,708756,108810
DOH,London Ambulance Service NHS Trust,22/03/2023,Service Charges,Cody Road Estates,Cbre Ltd,708759,4771.84
DOH,London Ambulance Service NHS Trust,22/03/2023,Rent,Cody Road Estates,Cbre Ltd,708759,134177.8
DOH,London Ambulance Service NHS Trust,29/03/2023,Managed Service - Call Handler,111 Sel Operations,Dhu 111 (East Midlands) Cic,708821,63486
DOH,London Ambulance Service NHS Trust,15/03/2023,Buildings,Capital,Wb Power Services Ltd,708827,343983.6
DOH,London Ambulance Service NHS Trust,15/03/2023,Vehicles,Capital,Man Truck And Bus Uk Ltd,708918,51505.2
DOH,London Ambulance Service NHS Trust,22/03/2023,Computer Software,Quality Governance & Assurance,Inphase Ltd,708938,36000
DOH,London Ambulance Service NHS Trust,08/03/2023,Consultancy Fees,Trust Management,Association Of Ambulance Chief Executives,709018,26009.4
DOH,London Ambulance Service NHS Trust,17/03/2023,Rent,Rainham (Lsu) Estates,Segro Plc,709037,145198.8
DOH,London Ambulance Service NHS Trust,29/03/2023,Vehicles,Capital,Ferno (Uk),709066,170213.09
DOH,London Ambulance Service NHS Trust,29/03/2023,Vehicles,Capital,Ferno (Uk),709078,170847.07
DOH,London Ambulance Service NHS Trust,03/03/2023,Course And Conference Fees,Clinical Ed Management,A Kind Life Ltd,709223,417120
DOH,London Ambulance Service NHS Trust,22/03/2023,Office & Station Equipment,Supply & Material Management,Creative Software Solutions (Europe) Ltd,709239,25418.4
DOH,London Ambulance Service NHS Trust,31/03/2023,Managed Service - Call Handler,111 Nwl Operations,Practice Plus Group Urgent Care Limited,709242,649063.2
DOH,London Ambulance Service NHS Trust,29/03/2023,Managed Service - Call Handler,111 Nwl Operations,Practice Plus Group Urgent Care Limited,709243,249640
DOH,London Ambulance Service NHS Trust,17/03/2023,Computer Periphs & Accessories,Croydon Estates,Dell Computer Corporation Ltd,709260,39360
DOH,London Ambulance Service NHS Trust,10/03/2023,Agency Admin & Clerical,IPCD Business Support,Integrated Care Group Ltd,709313,1660.9
DOH,London Ambulance Service NHS Trust,10/03/2023,Agency Call Handlers,Clinical Hub (Chub),Integrated Care Group Ltd,709313,810.58
DOH,London Ambulance Service NHS Trust,10/03/2023,Agency Call Handlers,111 Nel Operations,Integrated Care Group Ltd,709313,235049.7
DOH,London Ambulance Service NHS Trust,10/03/2023,Agency Call Handlers,111 Sel Operations,Integrated Care Group Ltd,709313,51009.39
DOH,London Ambulance Service NHS Trust,10/03/2023,Agency Gp,111 Nel Operations - Cas,Integrated Care Group Ltd,709313,40876.66
DOH,London Ambulance Service NHS Trust,03/03/2023,Managed Service - Blue Light,Critial Care Transfer Service,Veho Solutions Ltd,709344,36217.2
DOH,London Ambulance Service NHS Trust,22/03/2023,Service Charges,Maritime House Ground Floor,Knight Frank Llp,709363,16440.12
DOH,London Ambulance Service NHS Trust,22/03/2023,Rent,Maritime House Ground Floor,Knight Frank Llp,709363,42671.4
DOH,London Ambulance Service NHS Trust,08/03/2023,Vehicle Recovery,Fleet Support Services,The Mansfield Group,709364,86619.79
DOH,London Ambulance Service NHS Trust,22/03/2023,Service Charges,Maritime House Ground Floor,Knight Frank Llp,709366,34890.08
DOH,London Ambulance Service NHS Trust,22/03/2023,Rent,Maritime House Ground Floor,Knight Frank Llp,709366,77142
DOH,London Ambulance Service NHS Trust,22/03/2023,Service Charges,Maritime House Ground Floor,Knight Frank Llp,709366,34890.08
DOH,London Ambulance Service NHS Trust,24/03/2023,Service Charges,Maritime House Ground Floor,Knight Frank Llp,709367,17433.12
DOH,London Ambulance Service NHS Trust,24/03/2023,Rent,Maritime House Ground Floor,Knight Frank Llp,709367,45291
DOH,London Ambulance Service NHS Trust,22/03/2023,Service Charges,Maritime House Ground Floor,Knight Frank Llp,709368,13984.14
DOH,London Ambulance Service NHS Trust,22/03/2023,Rent,Maritime House Ground Floor,Knight Frank Llp,709368,35623.96
DOH,London Ambulance Service NHS Trust,29/03/2023,Managed Service - Call Handler,111 Nwl Operations,London Central And West Ucc,709409,199737
DOH,London Ambulance Service NHS Trust,29/03/2023,Managed Service - Call Handler,111 Nwl Operations,London Central And West Ucc,709410,259096.8
DOH,London Ambulance Service NHS Trust,29/03/2023,Taxis & Mini Cabs,Non Emergency Transport,Addison Lee,709418,52403.09
DOH,London Ambulance Service NHS Trust,15/03/2023,Computer Hardware,Capital,Dell Computer Corporation Ltd,709428,35760
DOH,London Ambulance Service NHS Trust,15/03/2023,Computer Hardware,Capital,Dell Computer Corporation Ltd,709429,35760
DOH,London Ambulance Service NHS Trust,15/03/2023,Computer Hardware,Capital,Dell Computer Corporation Ltd,709430,35760
DOH,London Ambulance Service NHS Trust,10/03/2023,Computer Periphs & Accessories,Bwh South London Iuc 111 Cas Replacement Premises,Cdw Ltd,709434,50164.8
DOH,London Ambulance Service NHS Trust,22/03/2023,Rent,Brentside Park Training,Emerson Management Services Limited,709468,37546.8
DOH,London Ambulance Service NHS Trust,08/03/2023,Tail Lift Components/Tests,Fleet Support Services,Alfa Tail Lifts Ltd,709494,25453.37
DOH,London Ambulance Service NHS Trust,15/03/2023,Professional Fees & Services,Business Relationship Mgmt,Digital Gurus Recruitment Ltd,709511,25740
DOH,London Ambulance Service NHS Trust,15/03/2023,Computer Hardware,Capital,Dell Computer Corporation Ltd,709618,35760
DOH,London Ambulance Service NHS Trust,24/03/2023,Interpretation Services,111 Nel Operations,Language Line,709649,28772.9
DOH,London Ambulance Service NHS Trust,08/03/2023,Network & Route & Setup,Vdi Horizon,Cdw Ltd,709671,36282.19
DOH,London Ambulance Service NHS Trust,15/03/2023,Computer Periphs & Accessories,Croydon Estates,Dell Computer Corporation Ltd,709690,30000
DOH,London Ambulance Service NHS Trust,08/03/2023,Professional Fees & Services,Infrastructure Modernisation,Mason Advisory Limited,709692,94128
DOH,London Ambulance Service NHS Trust,22/03/2023,Rent,Brentside Park Training,Emerson Management Services Limited,709734,137498.4
DOH,London Ambulance Service NHS Trust,29/03/2023,Building Maintenance,Greenwich Estates,Fletchers Facilities Ltd,709747,96628
DOH,London Ambulance Service NHS Trust,29/03/2023,Building Maintenance,Fulham Estates,Fletchers Facilities Ltd,709764,51837.94
DOH,London Ambulance Service NHS Trust,07/03/2023,Professional Fees & Services,Trust Management,Association Of Ambulance Chief Executives,709808,216000
DOH,London Ambulance Service NHS Trust,07/03/2023,Professional Fees & Services,Trust Management,Association Of Ambulance Chief Executives,709809,132000
DOH,London Ambulance Service NHS Trust,07/03/2023,Professional Fees & Services,Trust Management,Association Of Ambulance Chief Executives,709810,189600
DOH,London Ambulance Service NHS Trust,17/03/2023,Buildings,Capital,Cooper Clarke Contruction Ltd,709923,65762.77
DOH,London Ambulance Service NHS Trust,17/03/2023,Buildings,Capital,Cooper Clarke Contruction Ltd,709929,38722.67
DOH,London Ambulance Service NHS Trust,17/03/2023,Buildings,Capital,Cooper Clarke Contruction Ltd,709930,64046.39
DOH,London Ambulance Service NHS Trust,17/03/2023,Buildings,Capital,Cooper Clarke Contruction Ltd,709941,67678.66
DOH,London Ambulance Service NHS Trust,17/03/2023,Rent,Islington Estates,City Of London,709949,82500
DOH,London Ambulance Service NHS Trust,15/03/2023,Professional Fees & Services,Fleet Support Services,Brs Jobs Ltd,709999,27234.98
DOH,London Ambulance Service NHS Trust,22/03/2023,Consultancy Fees,Senior Operational Mgmt,Transformation Nous Limited,710104,101100
DOH,London Ambulance Service NHS Trust,29/03/2023,Building Maintenance,Fulham Estates,Fletchers Facilities Ltd,710107,93725.85
DOH,London Ambulance Service NHS Trust,29/03/2023,Tyres,Fleet Support Services,Ats Euromaster Ltd,710109,43278.77
DOH,London Ambulance Service NHS Trust,29/03/2023,Postage & Carriage,Managed Stores,Tactree,710111,424.8
DOH,London Ambulance Service NHS Trust,29/03/2023,Ambulance Equipment,Managed Stores,Tactree,710111,39655.2
DOH,London Ambulance Service NHS Trust,31/03/2023,Medical Equipment,Supply & Material Management,Proact Medical Ltd,710135,498000.06
DOH,London Ambulance Service NHS Trust,24/03/2023,Computer Software,Hr Strategy Management,Goodshape Ltd,710147,46146.67
DOH,London Ambulance Service NHS Trust,22/03/2023,Buildings,Capital,Logan Construction,710321,80193.9
DOH,London Ambulance Service NHS Trust,23/03/2023,Vehicles,Capital,Wietmarscher Ambulanz- Und Sonderfahrzeug Gmb,710449,83955
DOH,London Ambulance Service NHS Trust,17/03/2023,Professional Fees & Services,Data Quality Assurance,Bloom Procurement Services Limited,710454,67895.28
DOH,London Ambulance Service NHS Trust,17/03/2023,Cleaning Of Premises,Property Management,Lakethorne Ltd,710460,108116.91
DOH,London Ambulance Service NHS Trust,22/03/2023,Agency Call Handlers,111 Nel Operations,Integrated Care Group Ltd,710506,112980.76
DOH,London Ambulance Service NHS Trust,22/03/2023,Agency Call Handlers,111 Nel Operations,Integrated Care Group Ltd,710508,105002.39
DOH,London Ambulance Service NHS Trust,15/03/2023,Course And Conference Fees,Hee Income Uni Placements 2021-22,Footstep Training Ltd,710628,44524.8
DOH,London Ambulance Service NHS Trust,24/03/2023,Consultancy Fees,Brent Unit 11 Falcon Park,The Fulker Consultancy Limited,710670,28800
DOH,London Ambulance Service NHS Trust,22/03/2023,Building Maintenance,Property Management,Ajar Tec Ltd,710815,49788
DOH,London Ambulance Service NHS Trust,15/03/2023,Network Equipment & Services,Capital,Cdw Ltd,710900,39409.74
DOH,London Ambulance Service NHS Trust,22/03/2023,Computer Hardware,Capital,Dell Computer Corporation Ltd,710915,31168.8
DOH,London Ambulance Service NHS Trust,31/03/2023,Data Comms Maintenance,Hazardous Area Response Team,Airbox Systems Ltd,710933,106666.66
DOH,London Ambulance Service NHS Trust,22/03/2023,Computer Peripherals & Access,Capital,Osborne Technologies Limited,710946,26337.6
DOH,London Ambulance Service NHS Trust,22/03/2023,Mechanical Reactive Works,Brentside Park Training,Emerson Management Services Limited,710951,31848
DOH,London Ambulance Service NHS Trust,17/03/2023,Awards And Ceremonies,Central Corporate,John Lewis Business,710952,950000
DOH,London Ambulance Service NHS Trust,22/03/2023,External Training Services,Director Of Ambulance Services,Hennessy Consulting Limited,711051,28800
DOH,London Ambulance Service NHS Trust,22/03/2023,Buildings,Capital,A & D Industrial Doors Ltd,711095,26665.5
DOH,London Ambulance Service NHS Trust,22/03/2023,Occupational Health Fees,Healthy Workplace,Working On Wellbeing T/A Optima Health,711118,71246.22
DOH,London Ambulance Service NHS Trust,22/03/2023,Gp Services,Clinical Hub (Chub),South East London Doctors Cooperative Ltd,711120,134461.05
DOH,London Ambulance Service NHS Trust,31/03/2023,Gp Services,Clinical Hub (Chub),South East London Doctors Cooperative Ltd,711122,-477435
DOH,London Ambulance Service NHS Trust,24/03/2023,Course And Conference Fees,Hee Income Uni Placements 2021-22,Buckinghamshire New University,711203,158400
DOH,London Ambulance Service NHS Trust,31/03/2023,Phone & Fax Line Rental,Networks,Britsh Telecom (Bt) Plc,711221,194041.33
DOH,London Ambulance Service NHS Trust,29/03/2023,Training Accommodation,International Recruitment 2023,The Independents Hotel Reservations Ltd,711230,97953
DOH,London Ambulance Service NHS Trust,24/03/2023,Capitalised Software,Capital,Cdw Ltd,711256,35947.32
DOH,London Ambulance Service NHS Trust,17/03/2023,Computer Software,999 Support Services,Goodsam Ltd,711274,42000
DOH,London Ambulance Service NHS Trust,22/03/2023,Professional Fees & Services,Trust Management,Association Of Ambulance Chief Executives,711556,25322.53
DOH,London Ambulance Service NHS Trust,22/03/2023,Professional Fees & Services,Eoc Transformation Project,Association Of Ambulance Chief Executives,711557,30321.25
DOH,London Ambulance Service NHS Trust,22/03/2023,Data Network Rental,Networks,Daisy Corporate Services Trading Limited,711633,30466.31
DOH,London Ambulance Service NHS Trust,24/03/2023,Data Network Rental,Crew Safety System Units,Edc Systems Ltd T/A Traffilog,711651,144140.83
DOH,London Ambulance Service NHS Trust,24/03/2023,Computer Software Maintenance,Fleet Support Services,Edc Systems Ltd T/A Traffilog,711652,93543.84
DOH,London Ambulance Service NHS Trust,24/03/2023,Data Network Rental,Crew Safety System Units,Edc Systems Ltd T/A Traffilog,711654,164419.2
DOH,London Ambulance Service NHS Trust,24/03/2023,Course And Conference Fees,Hee Income Uni Placements,Buckinghamshire New University,711679,102270
DOH,London Ambulance Service NHS Trust,29/03/2023,Buildings,Capital,Bhc Healthcare Furniture Ltd,711680,79313.64
DOH,London Ambulance Service NHS Trust,29/03/2023,Professional Fees & Services,Property Management,Nifes Property Limited,711744,37326
DOH,London Ambulance Service NHS Trust,29/03/2023,Professional Fees & Services,Property Management,Nifes Property Limited,711745,37326
DOH,London Ambulance Service NHS Trust,24/03/2023,Managed Service - Call Handler,111 Sel Operations,Herts Urgent Care,711762,142234.13
DOH,London Ambulance Service NHS Trust,24/03/2023,Course And Conference Fees,Hee Cpd Income 2022-23,Polaris Medical Services Ltd,711763,57600
DOH,London Ambulance Service NHS Trust,22/03/2023,Consultancy Fees,Central Corporate,Pa Consulting Services Ltd,711766,267600
DOH,London Ambulance Service NHS Trust,22/03/2023,Consultancy Fees,Central Corporate,Pa Consulting Services Ltd,711767,82800
DOH,London Ambulance Service NHS Trust,22/03/2023,Consultancy Fees,Central Corporate,Pa Consulting Services Ltd,711768,248400
DOH,London Ambulance Service NHS Trust,24/03/2023,Computer Hardware,Capital,Cdw Ltd,711788,155499.55
DOH,London Ambulance Service NHS Trust,24/03/2023,Data Network Rental,Airwave Radio Update,Bt Global Services,711829,114705.6
DOH,London Ambulance Service NHS Trust,24/03/2023,Data Network Rental,Networks,Bt Global Services,711839,30385.6
DOH,London Ambulance Service NHS Trust,29/03/2023,Building Maintenance,Greenwich Estates,Fletchers Facilities Ltd,711889,-38978.49
DOH,London Ambulance Service NHS Trust,29/03/2023,Phone & Fax Line Rental,Networks,Bt Teleworker,712105,59032.72
DOH,London Ambulance Service NHS Trust,22/03/2023,Managed Service - Call Handler,111 Nel Operations,Managed Service - Call Handler,712113,5198.65
DOH,London Ambulance Service NHS Trust,22/03/2023,Managed Service - Call Handler,111 Sel Operations,Managed Service - Call Handler,712113,7442.38
DOH,London Ambulance Service NHS Trust,22/03/2023,Managed Service - Nurses,111 Sel Operations - Cas,Hays Specialist Recruitment Ltd,712113,20078.59
DOH,London Ambulance Service NHS Trust,22/03/2023,Managed Service - Nurses,111 Nel Operations - Cas,Hays Specialist Recruitment Ltd,712113,268.66
DOH,London Ambulance Service NHS Trust,22/03/2023,Managed Service - GPS,111 Nel Operations - Cas,Hays Specialist Recruitment Ltd,712113,2377.97
DOH,London Ambulance Service NHS Trust,22/03/2023,Managed Service - Adv Prac,111 Nel Operations - Cas,Hays Specialist Recruitment Ltd,712113,483235.56
DOH,London Ambulance Service NHS Trust,22/03/2023,Managed Service - Adv Prac,111 Sel Operations - Cas,Hays Specialist Recruitment Ltd,712113,105445.94
DOH,London Ambulance Service NHS Trust,22/03/2023,Managed Service - Gps,111 Nel Operations - Cas,Hays Specialist Recruitment Ltd,712113,206627
DOH,London Ambulance Service NHS Trust,22/03/2023,Managed Service - Gps,111 Sel Operations - Cas,Hays Specialist Recruitment Ltd,712113,412922.74
DOH,London Ambulance Service NHS Trust,22/03/2023,Rent,Brent Estates,Workman Llp,712140,50349.9
DOH,London Ambulance Service NHS Trust,22/03/2023,Rent,Brent Estates,Workman Llp,712141,37599.3
DOH,London Ambulance Service NHS Trust,24/03/2023,Course And Conference Fees,Hee Income Paramedic Science 2022-23,Oxford Brookes University,712170,200000
DOH,London Ambulance Service NHS Trust,22/03/2023,Course And Conference Fees,Hee Income Paramedic Tuition 2022-23,The University Of Sheffield,712280,70705
DOH,London Ambulance Service NHS Trust,24/03/2023,Vehicles,Capital,Wietmarscher Ambulanz- Und Sonderfahrzeug Gmb,712281,83955
DOH,London Ambulance Service NHS Trust,24/03/2023,Vehicles,Capital,Wietmarscher Ambulanz- Und Sonderfahrzeug Gmb,712282,83955
DOH,London Ambulance Service NHS Trust,23/03/2023,Vehicles,Capital,Wietmarscher Ambulanz- Und Sonderfahrzeug Gmb,712289,83955
DOH,London Ambulance Service NHS Trust,24/03/2023,Vehicles,Capital,Wietmarscher Ambulanz- Und Sonderfahrzeug Gmb,712290,83955
DOH,London Ambulance Service NHS Trust,24/03/2023,Vehicles,Capital,Wietmarscher Ambulanz- Und Sonderfahrzeug Gmb,712291,83955
DOH,London Ambulance Service NHS Trust,24/03/2023,Vehicles,Capital,Wietmarscher Ambulanz- Und Sonderfahrzeug Gmb,712292,83955
DOH,London Ambulance Service NHS Trust,24/03/2023,Vehicles,Capital,Wietmarscher Ambulanz- Und Sonderfahrzeug Gmb,712293,83955
DOH,London Ambulance Service NHS Trust,24/03/2023,Vehicles,Capital,Wietmarscher Ambulanz- Und Sonderfahrzeug Gmb,712294,83955
DOH,London Ambulance Service NHS Trust,24/03/2023,Vehicles,Capital,Wietmarscher Ambulanz- Und Sonderfahrzeug Gmb,712295,83955
DOH,London Ambulance Service NHS Trust,24/03/2023,Vehicles,Capital,Wietmarscher Ambulanz- Und Sonderfahrzeug Gmb,712296,83955
DOH,London Ambulance Service NHS Trust,24/03/2023,Agency Admin & Clerical,Make Ready - Insource Costs,Build Recruitment Ltd,712323,32095.11
DOH,London Ambulance Service NHS Trust,29/03/2023,Buildings,Capital,Fletchers Facilities Ltd,712326,89791.36
DOH,London Ambulance Service NHS Trust,24/03/2023,Agency Admin & Clerical,Make Ready - Insource Costs,Build Recruitment Ltd,712333,37387.93
DOH,London Ambulance Service NHS Trust,31/03/2023,Buildings,Capital,Logan Construction,712363,56648.42
DOH,London Ambulance Service NHS Trust,24/03/2023,Private Ambulance Hire,Ops Central - Private Amb,Emfs Group Ltd,712400,44411.22
DOH,London Ambulance Service NHS Trust,23/03/2023,Computer Software,111 Iuc Central Cost,Advanced Health & Care,712406,1099541.52
DOH,London Ambulance Service NHS Trust,29/03/2023,Buildings,Capital,A & D Industrial Doors Ltd,712407,40724.4
DOH,London Ambulance Service NHS Trust,29/03/2023,Buildings,Capital,A & D Industrial Doors Ltd,712409,25231.58
DOH,London Ambulance Service NHS Trust,29/03/2023,Buildings,Capital,A & D Industrial Doors Ltd,712411,34606.74
DOH,London Ambulance Service NHS Trust,24/03/2023,Private Ambulance Hire,Ops Central - Private Amb,Polaris Medical Services Ltd,712412,38479.62
DOH,London Ambulance Service NHS Trust,29/03/2023,Buildings,Capital,A & D Industrial Doors Ltd,712413,33252.24
DOH,London Ambulance Service NHS Trust,29/03/2023,Computer Hardware,Community Responders Project,Cdw Ltd,712466,54823.56
DOH,London Ambulance Service NHS Trust,31/03/2023,Data Comms Maintenance,Hazardous Area Response Team,Airbox Systems Ltd,712472,213333.31
DOH,London Ambulance Service NHS Trust,24/03/2023,Professional Fees & Services,Trust Management,Transformation Nous Limited,712493,107100
DOH,London Ambulance Service NHS Trust,24/03/2023,Professional Fees & Services,Trust Management,Transformation Nous Limited,712494,54000
DOH,London Ambulance Service NHS Trust,29/03/2023,Protective Uniform Purchase,Tactical Response Unit,Avon Technical Products,712505,76420.8
DOH,London Ambulance Service NHS Trust,31/03/2023,Building Maintenance,Ponders End Estates,Coniston Limited,712517,34722
DOH,London Ambulance Service NHS Trust,22/03/2023,Managed Service - Call Handler,111 Sel Operations,Dhu 111 (East Midlands) Cic,712645,-33085.36
DOH,London Ambulance Service NHS Trust,22/03/2023,Managed Service - Call Handler,111 Sel Operations,Dhu 111 (East Midlands) Cic,712646,39702.43
DOH,London Ambulance Service NHS Trust,31/03/2023,Consultancy Fees,Director Of Finance,Pa Consulting Services Ltd,712717,88968
DOH,London Ambulance Service NHS Trust,29/03/2023,Building Maintenance,Hq Building Services,Smith & Company Building & Company,712719,29389
DOH,London Ambulance Service NHS Trust,29/03/2023,Building Maintenance,Greenwich Estates,Smith & Company Building & Company,712720,49389
DOH,London Ambulance Service NHS Trust,31/03/2023,External Training Services,Trust Management,Hennessy Consulting Limited,712751,131040
DOH,London Ambulance Service NHS Trust,24/03/2023,Vehicles,Capital,Wietmarscher Ambulanz- Und Sonderfahrzeug Gmb,712794,83955
DOH,London Ambulance Service NHS Trust,24/03/2023,Vehicles,Capital,Wietmarscher Ambulanz- Und Sonderfahrzeug Gmb,712795,58761.5
DOH,London Ambulance Service NHS Trust,24/03/2023,Vehicles,Capital,Wietmarscher Ambulanz- Und Sonderfahrzeug Gmb,712796,58761.5
DOH,London Ambulance Service NHS Trust,24/03/2023,Vehicles,Capital,Wietmarscher Ambulanz- Und Sonderfahrzeug Gmb,712797,56746.58
DOH,London Ambulance Service NHS Trust,24/03/2023,Vehicles,Capital,Wietmarscher Ambulanz- Und Sonderfahrzeug Gmb,712798,56746.58
DOH,London Ambulance Service NHS Trust,24/03/2023,Vehicles,Capital,Wietmarscher Ambulanz- Und Sonderfahrzeug Gmb,712799,55739.12
DOH,London Ambulance Service NHS Trust,24/03/2023,Vehicles,Capital,Wietmarscher Ambulanz- Und Sonderfahrzeug Gmb,712800,55739.12
DOH,London Ambulance Service NHS Trust,24/03/2023,Vehicles,Capital,Wietmarscher Ambulanz- Und Sonderfahrzeug Gmb,712801,54731.66
DOH,London Ambulance Service NHS Trust,24/03/2023,Vehicles,Capital,Wietmarscher Ambulanz- Und Sonderfahrzeug Gmb,712802,53724.2
DOH,London Ambulance Service NHS Trust,24/03/2023,Vehicles,Capital,Wietmarscher Ambulanz- Und Sonderfahrzeug Gmb,712803,53724.2
DOH,London Ambulance Service NHS Trust,24/03/2023,Vehicles,Capital,Wietmarscher Ambulanz- Und Sonderfahrzeug Gmb,712813,28560
DOH,London Ambulance Service NHS Trust,24/03/2023,Vehicles,Capital,Wietmarscher Ambulanz- Und Sonderfahrzeug Gmb,712814,28560
DOH,London Ambulance Service NHS Trust,29/03/2023,Course And Conference Fees,Hee Cpd Income 2022-23,University Of Hertfordshire,712839,30000
DOH,London Ambulance Service NHS Trust,29/03/2023,Managed Service - Blue Light,Critial Care Transfer Service,Veho Solutions Ltd,713122,28037.4
DOH,London Ambulance Service NHS Trust,29/03/2023,Course And Conference Fees,Pcn - Merton Trial,The Knowledge Academy Limited,713138,36000
DOH,London Ambulance Service NHS Trust,29/03/2023,Course And Conference Fees,Hee Cpd Income 2022-23,The Knowledge Academy Limited,713139,36000
DOH,London Ambulance Service NHS Trust,31/03/2023,Course And Conference Fees,Hee Placements 2020-21,World Extreme Medicine Ltd,713184,71600
DOH,London Ambulance Service NHS Trust,31/03/2023,Subscriptions To Associations,Trust Management,Association Of Ambulance Chief Executives,713207,84000
DOH,London Ambulance Service NHS Trust,31/03/2023,Consultancy Fees,Trust Management,Ppl (Private Public Ltd),713209,178860
DOH,London Ambulance Service NHS Trust,31/03/2023,Professional Fees & Services,Comms & Engagement Management,Workvivo Ltd,713218,235000
DOH,London Ambulance Service NHS Trust,29/03/2023,Course And Conference Fees,Hee Income Paramedic Science 2022-23,University Of Hertfordshire,713319,350000
DOH,London Ambulance Service NHS Trust,31/03/2023,Medical Equipment,Capital,Ruth Lee Ltd,713343,36008
DOH,London Ambulance Service NHS Trust,29/03/2023,Course And Conference Fees,Hee Income Uni Placements,Class Publishing,713351,36051.96
DOH,London Ambulance Service NHS Trust,29/03/2023,Course And Conference Fees,Hee Cpd Income 2022-23,Class Publishing,713357,68002.2
DOH,London Ambulance Service NHS Trust,31/03/2023,Professional Fees & Services,Healthy Workplace,The Independents Hotel Reservations Ltd,713371,45782.4
DOH,London Ambulance Service NHS Trust,23/03/2023,Vehicles,Capital,Wietmarscher Ambulanz- Und Sonderfahrzeug Gmb,713372,-83955
DOH,London Ambulance Service NHS Trust,24/03/2023,Vehicles,Capital,P S G Frieght Services,713374,319449
DOH,London Ambulance Service NHS Trust,31/03/2023,Fire Extinguisher Purchase,Property Management,Lightside Ltd,713391,98550
DOH,London Ambulance Service NHS Trust,31/03/2023,Course And Conference Fees,Leadership & Performance,Middlesex University,713394,462150
DOH,London Ambulance Service NHS Trust,29/03/2023,Vehicles,Capital,Wilker Auto Conversions,713426,194359.08
DOH,London Ambulance Service NHS Trust,31/03/2023,Building Maintenance,Nets Orpington,Borahurst Ltd,713451,30080.4
DOH,London Ambulance Service NHS Trust,29/03/2023,Vehicles,Capital,Stryker Uk Ltd,713459,872886.71
DOH,London Ambulance Service NHS Trust,29/03/2023,Course And Conference Fees,Hee Income Paramedic Upskilling 2022-23,A To E Training & Solutions Ltd,713463,30000
DOH,London Ambulance Service NHS Trust,29/03/2023,Course And Conference Fees,Hee Income Uni Placements,Kingston University London,713492,300000
DOH,London Ambulance Service NHS Trust,31/03/2023,Course And Conference Fees,Hee Cpd Income 2022-23,Anglia Ruskin University,713498,31262
DOH,London Ambulance Service NHS Trust,29/03/2023,Course And Conference Fees,Hee Income Uni Placements,Anglia Ruskin University,713499,381350
DOH,London Ambulance Service NHS Trust,29/03/2023,Agency Professional Staff,Make Ready - Insource Costs,Build Recruitment Ltd,713502,27766.1
DOH,London Ambulance Service NHS Trust,29/03/2023,Agency Professional Staff,Make Ready - Insource Costs,Build Recruitment Ltd,713503,28762.46
DOH,London Ambulance Service NHS Trust,29/03/2023,Agency Professional Staff,Make Ready - Insource Costs,Build Recruitment Ltd,713504,28232.64
DOH,London Ambulance Service NHS Trust,29/03/2023,Agency Professional Staff,Make Ready - Insource Costs,Build Recruitment Ltd,713505,39688.81
DOH,London Ambulance Service NHS Trust,29/03/2023,Agency Professional Staff,Make Ready - Insource Costs,Build Recruitment Ltd,713506,33873.28
DOH,London Ambulance Service NHS Trust,31/03/2023,Medical & Surgical Items,Supply & Material Management,Critical Healthcare Ltd,713509,30132
DOH,London Ambulance Service NHS Trust,29/03/2023,Course And Conference Fees,Hee Income Paramedic Science 2022-23,School Of Health & Life Sciences,713523,100000
DOH,London Ambulance Service NHS Trust,29/03/2023,Medical Equipment,Emergency Planning,Tsg Associates Llp,713880,82661.94
DOH,London Ambulance Service NHS Trust,29/03/2023,Ambulance Equipment,Emergency Planning,Tsg Associates Llp,713882,39000
DOH,London Ambulance Service NHS Trust,30/03/2023,Vehicles,Capital,Vehicle Conversion Specialists Ltd,713909,122062.51
DOH,London Ambulance Service NHS Trust,31/03/2023,Consultancy Fees,Brent Unit 11 Falcon Park,The Fulker Consultancy Limited,713926,31194
DOH,London Ambulance Service NHS Trust,31/03/2023,Internal Audit Fees,Financial Control,Bdo Llp,713971,26775
DOH,London Ambulance Service NHS Trust,31/03/2023,Vehicles,Capital,Volvo Car Uk Ltd,713980,39319
DOH,London Ambulance Service NHS Trust,31/03/2023,Vehicles,Capital,Volvo Car Uk Ltd,713981,38530
DOH,London Ambulance Service NHS Trust,31/03/2023,Vehicles,Capital,Volvo Car Uk Ltd,713984,39319
DOH,London Ambulance Service NHS Trust,31/03/2023,Vehicles,Capital,Volvo Car Uk Ltd,713985,39319
DOH,London Ambulance Service NHS Trust,31/03/2023,Vehicles,Capital,Volvo Car Uk Ltd,713986,38530
DOH,London Ambulance Service NHS Trust,31/03/2023,Vehicles,Capital,Volvo Car Uk Ltd,713988,39030
DOH,London Ambulance Service NHS Trust,31/03/2023,Vehicles,Capital,Volvo Car Uk Ltd,713989,39030
DOH,London Ambulance Service NHS Trust,31/03/2023,Vehicles,Capital,Volvo Car Uk Ltd,713990,39030
DOH,London Ambulance Service NHS Trust,31/03/2023,Vehicles,Capital,Volvo Car Uk Ltd,713991,39030
DOH,London Ambulance Service NHS Trust,31/03/2023,Vehicles,Capital,Volvo Car Uk Ltd,713992,39030
DOH,London Ambulance Service NHS Trust,31/03/2023,Vehicles,Capital,Volvo Car Uk Ltd,713993,39715
DOH,London Ambulance Service NHS Trust,31/03/2023,Vehicles,Capital,Volvo Car Uk Ltd,713994,39030
DOH,London Ambulance Service NHS Trust,31/03/2023,Vehicles,Capital,Volvo Car Uk Ltd,713995,39715
DOH,London Ambulance Service NHS Trust,31/03/2023,Vehicles,Capital,Volvo Car Uk Ltd,713996,39030
DOH,London Ambulance Service NHS Trust,31/03/2023,Vehicles,Capital,Volvo Car Uk Ltd,713997,39715
DOH,London Ambulance Service NHS Trust,31/03/2023,Vehicles,Capital,Volvo Car Uk Ltd,713998,39030
DOH,London Ambulance Service NHS Trust,31/03/2023,Vehicles,Capital,Volvo Car Uk Ltd,713999,39715
DOH,London Ambulance Service NHS Trust,31/03/2023,Vehicles,Capital,Volvo Car Uk Ltd,714000,39030
DOH,London Ambulance Service NHS Trust,31/03/2023,Vehicles,Capital,Volvo Car Uk Ltd,714001,39715
DOH,London Ambulance Service NHS Trust,31/03/2023,Vehicles,Capital,Volvo Car Uk Ltd,714002,39715
DOH,London Ambulance Service NHS Trust,31/03/2023,Vehicles,Capital,Volvo Car Uk Ltd,714003,39715
DOH,London Ambulance Service NHS Trust,31/03/2023,Vehicles,Capital,Volvo Car Uk Ltd,714004,39030
DOH,London Ambulance Service NHS Trust,31/03/2023,Vehicles,Capital,Volvo Car Uk Ltd,714005,39030
DOH,London Ambulance Service NHS Trust,31/03/2023,Professional Fees & Services,Trust Management,Transformation Nous Limited,714021,247140
DOH,London Ambulance Service NHS Trust,31/03/2023,Course And Conference Fees,Hee Income Uni Placements,Kings College London,714101,100000
DOH,London Ambulance Service NHS Trust,29/03/2023,Protective Uniform Purchase,Emergency Spec Ops Resp Team,Avon Technical Products,714122,94044
DOH,London Ambulance Service NHS Trust,29/03/2023,Protective Uniform Purchase,Emergency Spec Ops Resp Team,Avon Technical Products,714123,88996.8
DOH,London Ambulance Service NHS Trust,29/03/2023,Protective Uniform Purchase,Hazardous Area Response Team,Avon Technical Products,714124,70533
DOH,London Ambulance Service NHS Trust,29/03/2023,Professional Fees & Services,Corporate Services Management,Bdo Llp,714140,39600
DOH,London Ambulance Service NHS Trust,31/03/2023,Vehicles,Capital,Volvo Car Uk Ltd,714163,82849.55
DOH,London Ambulance Service NHS Trust,31/03/2023,Vehicles,Capital,Volvo Car Uk Ltd,714164,38530
DOH,London Ambulance Service NHS Trust,31/03/2023,Vehicles,Capital,Volvo Car Uk Ltd,714165,38530
DOH,London Ambulance Service NHS Trust,31/03/2023,Gp Services,Clinical Hub (Chub),South East London Doctors Cooperative Ltd,714181,-477435
DOH,London Ambulance Service NHS Trust,31/03/2023,Gp Services,Clinical Hub (Chub),South East London Doctors Cooperative Ltd,714182,61190.45
DOH,London Ambulance Service NHS Trust,31/03/2023,Professional Fees & Services,Forecasting & Planning,Tet Limited,714235,211723.2
DOH,London Ambulance Service NHS Trust,31/03/2023,Buildings,Capital,Coniston Limited,714249,97837.18
DOH,London Ambulance Service NHS Trust,29/03/2023,Fleet Insurance,Fleet Support Services,Qbe Uk Limited,714258,239568
DOH,London Ambulance Service NHS Trust,29/03/2023,Fleet Insurance,Fleet Support Services,Qbe Uk Limited,714259,795916.8
DOH,London Ambulance Service NHS Trust,31/03/2023,Private Ambulance Hire,Ops Central - Private Amb,Polaris Medical Services Ltd,714269,32212.12
DOH,London Ambulance Service NHS Trust,31/03/2023,Private Ambulance Hire,Ops Central - Private Amb,Polaris Medical Services Ltd,714273,37113.36
DOH,London Ambulance Service NHS Trust,31/03/2023,Private Ambulance Hire,Ops Central - Private Amb,Polaris Medical Services Ltd,714275,39630
DOH,London Ambulance Service NHS Trust,31/03/2023,Private Ambulance Hire,Ops Central - Private Amb,Polaris Medical Services Ltd,714276,29986.05
DOH,London Ambulance Service NHS Trust,31/03/2023,Vehicles,Capital,Wilker Auto Conversions,714369,63698.46
DOH,London Ambulance Service NHS Trust,31/03/2023,Vehicles,Capital,Wilker Auto Conversions,714370,131572.81
DOH,London Ambulance Service NHS Trust,31/03/2023,Course And Conference Fees,Hee Income Uni Placements 2021-22,Impact Consulting Psychologists Ltd,714385,31527
DOH,London Ambulance Service NHS Trust,31/03/2023,Consultancy Fees,P&C Management,Zenon Consulting Ltd,714409,29880
DOH,London Ambulance Service NHS Trust,31/03/2023,Consultancy Fees,P&C Management,Zenon Consulting Ltd,714425,29880
DOH,London Ambulance Service NHS Trust,31/03/2023,Course And Conference Fees,Hee Income Uni Placements,University Of West London,714442,100000
DOH,London Ambulance Service NHS Trust,31/03/2023,Network Equipment & Services,Brent Unit 11 Falcon Park,Norbeck Ltd,714510,33236.31
DOH,London Ambulance Service NHS Trust,31/03/2023,Vehicles,Capital,Stryker Uk Ltd,714526,789998.88
DOH,London Ambulance Service NHS Trust,31/03/2023,Professional Fees & Services,Director Of Finance,Pricewaterhousecoopers,714741,210000
DOH,London Ambulance Service NHS Trust,31/03/2023,Other Legal Advice,Property Management,Nifes Property Limited,714847,47328
DOH,London Ambulance Service NHS Trust,31/03/2023,Building Maintenance,Property Management,Nifes Property Limited,714848,83544
DOH,London Ambulance Service NHS Trust,31/03/2023,Building Maintenance,Property Management,Nifes Property Limited,714858,83544
DOH,London Ambulance Service NHS Trust,30/03/2023,Vehicles,Capital,Vehicle Conversion Specialists Ltd,714877,103753.14
DOH,London Ambulance Service NHS Trust,30/03/2023,Vehicles,Capital,Vehicle Conversion Specialists Ltd,714878,103753.14
DOH,London Ambulance Service NHS Trust,30/03/2023,Vehicles,Capital,Vehicle Conversion Specialists Ltd,714879,103753.14
DOH,London Ambulance Service NHS Trust,30/03/2023,Vehicles,Capital,Vehicle Conversion Specialists Ltd,714880,103753.14
DOH,London Ambulance Service NHS Trust,30/03/2023,Vehicles,Capital,Vehicle Conversion Specialists Ltd,714883,103753.14
DOH,London Ambulance Service NHS Trust,30/03/2023,Vehicles,Capital,Vehicle Conversion Specialists Ltd,714889,103753.14
DOH,London Ambulance Service NHS Trust,30/03/2023,Vehicles,Capital,Vehicle Conversion Specialists Ltd,714890,103753.14
DOH,London Ambulance Service NHS Trust,30/03/2023,Vehicles,Capital,Vehicle Conversion Specialists Ltd,714891,103753.14
DOH,London Ambulance Service NHS Trust,30/03/2023,Vehicles,Capital,Vehicle Conversion Specialists Ltd,714892,103753.14
DOH,London Ambulance Service NHS Trust,30/03/2023,Office & Station Equipment,Winter Wellbeing 2022-23,Squared Space Ltd T/A My Office Pod,714893,44118
DOH,London Ambulance Service NHS Trust,30/03/2023,Vehicles,Capital,Vehicle Conversion Specialists Ltd,714895,103753.14
DOH,London Ambulance Service NHS Trust,30/03/2023,Vehicles,Capital,Vehicle Conversion Specialists Ltd,714897,103753.14
DOH,London Ambulance Service NHS Trust,30/03/2023,Vehicles,Capital,Vehicle Conversion Specialists Ltd,714898,103753.14
DOH,London Ambulance Service NHS Trust,30/03/2023,Vehicles,Capital,Vehicle Conversion Specialists Ltd,714899,103753.14
DOH,London Ambulance Service NHS Trust,30/03/2023,Vehicles,Capital,Vehicle Conversion Specialists Ltd,714900,103753.14
DOH,London Ambulance Service NHS Trust,30/03/2023,Vehicles,Capital,Vehicle Conversion Specialists Ltd,714902,103753.14
DOH,London Ambulance Service NHS Trust,30/03/2023,Vehicles,Capital,Vehicle Conversion Specialists Ltd,714903,103753.14
DOH,London Ambulance Service NHS Trust,30/03/2023,Vehicles,Capital,Vehicle Conversion Specialists Ltd,714904,103753.14
DOH,London Ambulance Service NHS Trust,30/03/2023,Vehicles,Capital,Vehicle Conversion Specialists Ltd,714905,103753.14
DOH,London Ambulance Service NHS Trust,30/03/2023,Vehicles,Capital,Vehicle Conversion Specialists Ltd,714906,103753.14
DOH,London Ambulance Service NHS Trust,30/03/2023,Vehicles,Capital,Vehicle Conversion Specialists Ltd,714907,103753.14
DOH,London Ambulance Service NHS Trust,30/03/2023,Vehicles,Capital,Vehicle Conversion Specialists Ltd,714908,103753.14
DOH,London Ambulance Service NHS Trust,31/03/2023,Course And Conference Fees,Wallace C1,Wallace School Of Transport,714927,32537.4
DOH,London Ambulance Service NHS Trust,31/03/2023,Subscriptions To Associations,Director Of Finance,Nhs Providers,714942,101096
DOH,London Ambulance Service NHS Trust,31/03/2023,Professional Fees & Services,Strategy,Ppl (Private Public Ltd),714975,49410
DOH,London Ambulance Service NHS Trust,31/03/2023,Professional Fees & Services,Trust Management,"Mckinsey And Company, Inc. Uk",715168,204000
DOH,London Ambulance Service NHS Trust,08/03/2023,Technical Support - Contract,Telent Mdt Maintenance,Department Of Health,7309,237972.6
DOH,London Ambulance Service NHS Trust,01/03/2023,Defibrillator Maintenance,Supply & Material Management,Nhs Supply Chain Maintenance,7352,61725.3
DOH,London Ambulance Service NHS Trust,03/03/2023,Defibrillator Maintenance,Supply & Material Management,Nhs Supply Chain Maintenance,7369,240412.64
DOH,London Ambulance Service NHS Trust,08/03/2023,Defibrillator Maintenance,Supply & Material Management,Nhs Supply Chain Maintenance,7371,27462.6
DOH,London Ambulance Service NHS Trust,01/03/2023,Drugs Stock - Central Stores,Balance Sheet,Frimley Health Nhs Foundation Trust,7388,26814.7
DOH,London Ambulance Service NHS Trust,01/03/2023,Gp Services,111 Nel Operations - Cas,Nhs North East London Icb,7408,188160
DOH,London Ambulance Service NHS Trust,01/03/2023,Medical & Surgical Items,Supply & Material Management,Nhs Supply Chain,7421,148482
DOH,London Ambulance Service NHS Trust,15/03/2023,BP Control Account,Balance Sheet,BP Oil,104229,142472.63
DOH,London Ambulance Service NHS Trust,24/03/2023,Medical Gas,Director Of Ops,British Oxygen,104261,139707.15
DOH,London Ambulance Service NHS Trust,31/03/2023,BP Control Account,Balance Sheet,BP Oil,104397,171592.05
DOH,London Ambulance Service NHS Trust,15/03/2023,Ensign Insurance Pre-Payment,Balance Sheet,QBE INSURANCE / EU,104229,279046.66
